[Event "FIDE WCCC U8 2018"]
[Site "Santiago de Compostela"]
[Date "2018.11.15"]
[Round "11"]
[White "Mamedov, Edgar"]
[Black "Chennareddy, Yuvraj"]
[Result "0-1"]
[ECO "A28"]
[WhiteElo "1599"]
[BlackElo "1497"]
[Annotator "NA"]
[PlyCount "130"]
[EventDate "2018.11.04"]
[EventType "swiss"]
[EventCountry "ESP"]
[SourceTitle "playchess.com"]
[Source "ChessBase"]
[SourceQuality "1"]
[TimeControl "40/5400+30:1800+30"]

1. c4 {[%emt 0:00:00]} e5 {[%emt 0:00:47]} 2. Nc3 {[%emt 0:00:34]} Nf6 {[%emt 0:02:59]} 3. Nf3 {[%emt 0:01:40]} Nc6 {[%emt 0:00:06]} 4. e3 {[%emt 0:00:22]} Be7 {[%emt 0:19:10]} 5. d3 {[%emt 0:01:55]} O-O {[%emt 0:00:09]} 6. Be2 {[%emt 0:01:02]} d5 {[%emt 0:00:25]} 7. cxd5 {[%emt 0:00:53]} Nxd5 {[%emt 0:00:06]} 8. O-O {[%emt 0:01:20]} Nxc3 {[%emt 0:04:23]} 9. bxc3 {[%emt 0:00:09]} Be6 {[%emt 0:00:03]} 10. c4 {[%emt 0:01:21]} Bf6 {[%emt 0:00:43]} 11. Bb2 {[%emt 0:00:46]} Qd7 {[%emt 0:00:28]} 12. Qb1 {[%emt 0:04:59]} Rab8 {[%emt 0:03:58]} 13. a4 {[%emt 0:01:09]} a6 {[%emt 0:00:30]} 14. Ba3 {[%emt 0:01:19]} Rfd8 {[%emt 0:05:33]} 15. e4 {[%emt 0:01:02]} Bg4 {[%emt 0:00:55]} 16. Rd1 {[%emt 0:12:08]} Bxf3 {[%emt 0:00:39]} 17. Bxf3 {[%emt 0:02:47]} Nd4 {[%emt 0:00:06]} 18. Qb2 {[%emt 0:04:21]} Nxf3+ {[%emt 0:00:23]} 19. gxf3 {[%emt 0:00:13]} Qh3 {[%emt 0:00:04]} 20. Qe2 {[%emt 0:00:16]} Bg5 {[%emt 0:00:23]} 21. Bc1 {[%emt 0:00:13]} Bxc1 {[%emt 0:00:08]} 22. Qf1 {[%emt 0:08:20]} Qxf1+ {[%emt 0:00:46]} 23. Kxf1 {[%emt 0:05:45]} Bf4 {[%emt 0:00:05]} 24. h3 {[%emt 0:00:19]} Rd6 {[%emt 0:00:45]} 25. a5 {[%emt 0:00:23]} Rbd8 {[%emt 0:00:18]} 26. Ke2 {[%emt 0:00:05]} Rh6 {[%emt 0:00:19]} 27. Rh1 {[%emt 0:00:13]} b6 {[%emt 0:00:50]} 28. axb6 {[%emt 0:01:26]} Rxb6 {[%emt 0:00:09]} 29. Ra2 {[%emt 0:00:13]} g6 {[%emt 0:00:12]} 30. Rha1 {[%emt 0:00:49]} Kg7 {[%emt 0:00:19]} 31. Rd1 {[%emt 0:00:39]} Rdb8 {[%emt 0:01:18]} 32. Rda1 {[%emt 0:00:28]} Rb2+ {[%emt 0:00:46]} 33. Kf1 {[%emt 0:00:05]} Rxa2 {[%emt 0:00:32]} 34. Rxa2 {[%emt 0:00:16]} Rb6 {[%emt 0:00:16]} 35. Ke2 {[%emt 0:00:26]} Kh6 {[%emt 0:00:15]} 36. Kf1 {[%emt 0:01:06]} Rd6 {[%emt 0:00:41]} 37. Ra3 {[%emt 0:00:22]} f5 {[%emt 0:00:28]} 38. Kg2 {[%emt 0:00:23]} fxe4 {[%emt 0:00:07]} 39. fxe4 {[%emt 0:00:04]} Bd2 {[%emt 0:00:27]} 40. Kf3 {[%emt 0:00:00]} Bb4 {[%emt 0:00:00]} 41. Rb3 {[%emt 0:07:28]} c5 {[%emt 0:00:37]} 42. Kg4 {[%emt 0:01:21]} a5 {[%emt 0:00:13]} 43. f4 {[%emt 0:01:48]} a4 {[%emt 0:00:28]} 44. Rb1 {[%emt 0:00:49]} exf4 {[%emt 0:00:17]} 45. Kxf4 {[%emt 0:01:14]} a3 {[%emt 0:00:22]} 46. e5 {[%emt 0:01:45]} Ra6 {[%emt 0:00:08]} 47. d4 {[%emt 0:01:09]} a2 {[%emt 0:00:08]} 48. Ra1 {[%emt 0:02:05]} Bc3 {[%emt 0:00:06]} 49. Rxa2 {[%emt 0:06:12]} Rxa2 {[%emt 0:00:11]} 50. d5 {[%emt 0:00:43]} Kg7 {[%emt 0:00:12]} 51. Ke4 {[%emt 0:01:30]} Re2+ {[%emt 0:00:34]} 52. Kd3 {[%emt 0:00:31]} Rxe5 {[%emt 0:00:08]} 53. Kxc3 {[%emt 0:01:04]} Re3+ {[%emt 0:00:13]} 54. Kd2 {[%emt 0:00:14]} Rxh3 {[%emt 0:00:06]} 55. d6 {[%emt 0:00:50]} Kf7 {[%emt 0:00:08]} 56. d7 {[%emt 0:00:36]} Ke7 {[%emt 0:00:05]} 57. d8=Q+ {[%emt 0:00:38]} Kxd8 {[%emt 0:00:11]} 58. Kc2 {[%emt 0:01:12]} Rf3 {[%emt 0:00:07]} 59. Kb2 {[%emt 0:00:30]} h5 {[%emt 0:00:07]} 60. Ka2 {[%emt 0:00:25]} h4 {[%emt 0:00:06]} 61. Kb2 {[%emt 0:00:43]} h3 {[%emt 0:00:53]} 62. Ka2 {[%emt 0:00:24]} h2 {[%emt 0:00:05]} 63. Kb2 {[%emt 0:00:12]} h1=Q {[%emt 0:00:10]} 64. Ka2 {[%emt 0:00:09]} Qg2+ {[%emt 0:00:05]} 65. Ka1 {[%emt 0:04:07]} Rf1# {[%emt 0:00:09]} 0-1

[Event "FIDE WCCC U8 2018"]
[Site "Santiago de Compostela"]
[Date "2018.11.15"]
[Round "11"]
[White "Golovchenko, Bogdan"]
[Black "Zverev, Lev"]
[Result "0-1"]
[ECO "A80"]
[WhiteElo "1556"]
[BlackElo "1723"]
[Annotator "NA"]
[PlyCount "74"]
[EventDate "2018.11.04"]
[EventType "swiss"]
[EventCountry "ESP"]
[SourceTitle "playchess.com"]
[Source "ChessBase"]
[SourceQuality "1"]
[TimeControl "40/5400+30:1800+30"]

1. d4 {[%emt 0:00:00]} f5 {[%emt 0:00:00]} 2. Nf3 {[%emt 0:00:04]} Nf6 {[%emt 0:00:00]} 3. c4 {[%emt 0:01:05]} g6 {[%emt 0:00:00]} 4. Nc3 {[%emt 0:01:25]} Bg7 {[%emt 0:00:05]} 5. e3 {[%emt 0:01:04]} O-O {[%emt 0:00:12]} 6. b3 {[%emt 0:00:14]} d6 {[%emt 0:00:10]} 7. Bb2 {[%emt 0:00:26]} Qe8 {[%emt 0:00:08]} 8. Bd3 {[%emt 0:00:36]} a5 {[%emt 0:03:12]} 9. O-O {[%emt 0:00:44]} Na6 {[%emt 0:00:08]} 10. a3 {[%emt 0:00:25]} e5 {[%emt 0:00:24]} 11. dxe5 {[%emt 0:02:45]} dxe5 {[%emt 0:00:05]} 12. Bc2 {[%emt 0:00:10]} Bd7 {[%emt 0:01:28]} 13. Qe2 {[%emt 0:03:17]} h6 {[%emt 0:01:21]} 14. Rfd1 {[%emt 0:19:12]} g5 {[%emt 0:02:12]} 15. e4 {[%emt 0:00:32]} f4 {[%emt 0:00:16]} 16. Nd5 {[%emt 0:01:57]} Nh7 {[%emt 0:02:07]} 17. Qd2 {[%emt 0:12:46]} Rd8 {[%emt 0:00:28]} 18. Qxa5 {[%emt 0:00:46]} g4 {[%emt 0:01:35]} 19. Nh4 {[%emt 0:00:16]} Qh5 {[%emt 0:00:56]} 20. g3 {[%emt 0:00:48]} Ng5 {[%emt 0:01:46]} 21. Ne7+ {[%emt 0:09:54]} Kh7 {[%emt 0:00:43]} 22. Nef5 {[%emt 0:00:27]} Bxf5 {[%emt 0:09:06]} 23. exf5 {[%emt 0:00:22]} Bf6 {[%emt 0:00:17]} 24. Bxe5 {[%emt 0:11:23]} Nf3+ {[%emt 0:17:44]} 25. Nxf3 {[%emt 0:00:52]} gxf3 {[%emt 0:00:13]} 26. Be4 {[%emt 0:00:29]} fxg3 {[%emt 0:00:16]} 27. Bxg3 {[%emt 0:00:13]} Qg4 {[%emt 0:02:21]} 28. Bxb7 {[%emt 0:01:10]} Bxa1 {[%emt 0:00:23]} 29. Rxa1 {[%emt 0:00:07]} Rxf5 {[%emt 0:01:16]} 30. Qxa6 {[%emt 0:01:35]} Qh3 {[%emt 0:00:14]} 31. Bxf3 {[%emt 0:00:04]} Rxf3 {[%emt 0:00:04]} 32. Re1 {[%emt 0:00:58]} Rf7 {[%emt 0:00:45]} 33. Qc6 {[%emt 0:01:01]} Qf5 {[%emt 0:02:33]} 34. b4 {[%emt 0:00:53]} Rg8 {[%emt 0:02:33]} 35. c5 {[%emt 0:05:54]} Qxf2+ {[%emt 0:00:36]} 36. Kh1 {[%emt 0:00:09]} Qxe1+ {[%emt 0:00:19]} 37. Kg2 {[%emt 0:00:11]} Qf1# {[%emt 0:00:06]} 0-1

[Event "FIDE WCCC U8 2018"]
[Site "Santiago de Compostela"]
[Date "2018.11.15"]
[Round "11"]
[White "Gordeev, Denis"]
[Black "Chen, Zhiyuan"]
[Result "1-0"]
[ECO "B20"]
[WhiteElo "1553"]
[BlackElo "1459"]
[Annotator "NA"]
[PlyCount "59"]
[EventDate "2018.11.04"]
[EventType "swiss"]
[EventCountry "ESP"]
[SourceTitle "playchess.com"]
[Source "ChessBase"]
[SourceQuality "1"]
[TimeControl "40/5400+30:1800+30"]

1. e4 {[%emt 0:00:00]} c5 {[%emt 0:00:00]} 2. b4 {[%emt 0:00:05]} cxb4 {[%emt 0:00:00]} 3. a3 {[%emt 0:00:17]} d5 {[%emt 0:00:00]} 4. exd5 {[%emt 0:00:33]} Qxd5 {[%emt 0:00:01]} 5. Nf3 {[%emt 0:00:24]} e5 {[%emt 0:01:04]} 6. c4 {[%emt 0:00:55]} Qe4+ {[%emt 0:12:23]} 7. Be2 {[%emt 0:02:09]} Nc6 {[%emt 0:02:48]} 8. O-O {[%emt 0:02:15]} Nf6 {[%emt 0:00:35]} 9. Re1 {[%emt 0:01:35]} Bd6 {[%emt 0:00:28]} 10. Bf1 {[%emt 0:03:14]} Qf5 {[%emt 0:05:10]} 11. Bb2 {[%emt 0:04:12]} O-O {[%emt 0:07:23]} 12. axb4 {[%emt 0:13:55]} e4 {[%emt 0:08:59]} 13. c5 {[%emt 0:08:42]} Bc7 {[%emt 0:00:53]} 14. Nh4 {[%emt 0:02:30]} Bxh2+ {[%emt 0:01:58]} 15. Kxh2 {[%emt 0:12:52]} Ng4+ {[%emt 0:00:12]} 16. Qxg4 {[%emt 0:10:54]} Qxg4 {[%emt 0:00:08]} 17. g3 {[%emt 0:00:22]} Bf5 {[%emt 0:18:43]} 18. Bc3 {[%emt 0:02:19]} Rfe8 {[%emt 0:07:45]} 19. Na3 {[%emt 0:03:22]} Ne5 {[%emt 0:09:03]} 20. Bxe5 {[%emt 0:02:17]} Rxe5 {[%emt 0:00:09]} 21. Nc4 {[%emt 0:00:13]} f6 {[%emt 0:19:06]} 22. Nxe5 {[%emt 0:03:41]} fxe5 {[%emt 0:01:56]} 23. Nxf5 {[%emt 0:01:02]} Qxf5 {[%emt 0:00:06]} 24. Re2 {[%emt 0:01:06]} Rd8 {[%emt 0:00:06]} 25. Rxa7 {[%emt 0:00:33]} e3 {[%emt 0:00:15]} 26. Bh3 {[%emt 0:05:31]} Qf3 {[%emt 0:02:42]} 27. Be6+ {[%emt 0:07:58]} Kf8 {[%emt 0:00:06]} 28. Bg4 {[%emt 0:07:52]} Qxg4 {[%emt 0:00:20]} 29. Rxe3 {[%emt 0:00:09]} Rxd2 {[%emt 0:01:01]} 30. Kg2 {[%emt 0:00:48]} 1-0

[Event "FIDE WCCC U8 2018"]
[Site "Santiago de Compostela"]
[Date "2018.11.15"]
[Round "11"]
[White "Villa Tornero, Alex"]
[Black "Levitan, Caleb Levi"]
[Result "0-1"]
[ECO "A01"]
[WhiteElo "1441"]
[BlackElo "1087"]
[Annotator "NA"]
[PlyCount "95"]
[EventDate "2018.11.04"]
[EventType "swiss"]
[EventCountry "ESP"]
[SourceTitle "playchess.com"]
[Source "ChessBase"]
[SourceQuality "1"]
[TimeControl "40/5400+30:1800+30"]

1. b3 {[%emt 0:00:00]} Nf6 {[%emt 0:00:01]} 2. Nf3 {[%emt 0:00:35]} g6 {[%emt 0:00:15]} 3. Bb2 {[%emt 0:00:52]} Bg7 {[%emt 0:00:16]} 4. g3 {[%emt 0:00:42]} O-O {[%emt 0:00:45]} 5. Bg2 {[%emt 0:00:37]} d6 {[%emt 0:01:09]} 6. d4 {[%emt 0:00:44]} e5 {[%emt 0:02:22]} 7. dxe5 {[%emt 0:00:34]} Ng4 {[%emt 0:00:15]} 8. h3 {[%emt 0:00:58]} Nxe5 {[%emt 0:00:17]} 9. Nxe5 {[%emt 0:00:32]} Bxe5 {[%emt 0:00:27]} 10. Bxe5 {[%emt 0:00:52]} dxe5 {[%emt 0:00:15]} 11. Qxd8 {[%emt 0:00:05]} Rxd8 {[%emt 0:00:14]} 12. Nd2 {[%emt 0:00:13]} c6 {[%emt 0:00:59]} 13. O-O-O {[%emt 0:00:31]} Be6 {[%emt 0:00:38]} 14. Ne4 {[%emt 0:00:49]} Na6 {[%emt 0:00:58]} 15. g4 {[%emt 0:02:34]} Kg7 {[%emt 0:01:52]} 16. g5 {[%emt 0:01:55]} Bd5 {[%emt 0:01:29]} 17. c4 {[%emt 0:01:38]} Bxe4 {[%emt 0:00:21]} 18. Bxe4 {[%emt 0:00:04]} Nc5 {[%emt 0:01:06]} 19. Bg2 {[%emt 0:04:21]} a5 {[%emt 0:00:37]} 20. Rxd8 {[%emt 0:01:02]} Rxd8 {[%emt 0:00:17]} 21. Rd1 {[%emt 0:00:08]} Rxd1+ {[%emt 0:00:37]} 22. Kxd1 {[%emt 0:00:03]} Ne6 {[%emt 0:01:10]} 23. h4 {[%emt 0:00:32]} h6 {[%emt 0:00:41]} 24. gxh6+ {[%emt 0:00:34]} Kxh6 {[%emt 0:00:17]} 25. Bh3 {[%emt 0:05:09]} Nf4 {[%emt 0:01:15]} 26. Bg4 {[%emt 0:04:31]} f5 {[%emt 0:00:33]} 27. Bf3 {[%emt 0:00:37]} e4 {[%emt 0:00:28]} 28. e3 {[%emt 0:00:26]} Nd3 {[%emt 0:00:25]} 29. Be2 {[%emt 0:02:21]} Nxf2+ {[%emt 0:00:17]} 30. Ke1 {[%emt 0:00:08]} Ng4 {[%emt 0:00:43]} 31. Bxg4 {[%emt 0:00:51]} fxg4 {[%emt 0:00:08]} 32. Kf2 {[%emt 0:00:10]} Kh5 {[%emt 0:00:12]} 33. Kg3 {[%emt 0:00:05]} g5 {[%emt 0:00:16]} 34. hxg5 {[%emt 0:00:24]} Kxg5 {[%emt 0:00:09]} 35. c5 {[%emt 0:00:40]} Kh5 {[%emt 0:00:32]} 36. a3 {[%emt 0:00:59]} Kg5 {[%emt 0:00:13]} 37. a4 {[%emt 0:00:56]} Kh5 {[%emt 0:00:08]} 38. Kf4 {[%emt 0:04:02]} Kh4 {[%emt 0:00:10]} 39. Kxe4 {[%emt 0:00:06]} g3 {[%emt 0:00:08]} 40. Ke5 {[%emt 0:00:00]} g2 {[%emt 0:00:00]} 41. Kd6 {[%emt 0:00:21]} g1=Q {[%emt 0:00:16]} 42. Kc7 {[%emt 0:00:09]} Qxe3 {[%emt 0:00:18]} 43. Kb6 {[%emt 0:00:29]} Qxb3+ {[%emt 0:00:14]} 44. Kxa5 {[%emt 0:00:10]} Qc3+ {[%emt 0:00:22]} 45. Kb6 {[%emt 0:00:07]} Qb4+ {[%emt 0:00:05]} 46. Kc7 {[%emt 0:00:16]} Qxc5 {[%emt 0:00:14]} 47. Kxb7 {[%emt 0:00:06]} Qb4+ {[%emt 0:00:28]} 48. Ka6 0-1